[Event "NSV Open-ch Rapid 2019"]
[Site "Lueneburg"]
[Date "2019.08.03"]
[Round "3.16"]
[White "Toepper, Olaf"]
[Black "Marzik, Arne"]
[Result "1-0"]
[ECO "A45"]
[WhiteElo "1896"]
[BlackElo "1366"]
[Annotator "NA RC"]
[PlyCount "87"]
[EventDate "2019.08.03"]
[EventType "swiss"]
[EventCountry "GER"]
[SourceTitle "playchess.com"]
[Source "ChessBase"]
[SourceQuality "1"]
[TimeControl "600+5"]

1. d4 {[%emt 0:00:00]} Nf6 {[%emt 0:00:00]} 2. Bf4 {[%emt 0:00:00]} e6 {[%emt 0:00:08]} 3. e3 {[%emt 0:00:00]} c5 {[%emt 0:00:02]} 4. c3 {[%emt 0:00:02]} Nc6 {[%emt 0:00:06]} 5. Nd2 {[%emt 0:00:03]} Qb6 {[%emt 0:00:20]} 6. Rb1 {[%emt 0:00:30]} Be7 {[%emt 0:00:20]} 7. Bd3 {[%emt 0:00:06]} Nd5 {[%emt 0:00:22]} 8. Nc4 {[%emt 0:00:32]} Qd8 {[%emt 0:00:38]} 9. Nd6+ {[%emt 0:00:04]} Bxd6 {[%emt 0:00:14]} 10. Bxd6 {[%emt 0:00:02]} Nde7 {[%emt 0:00:04]} 11. Qh5 {[%emt 0:01:14]} cxd4 {[%emt 0:00:23]} 12. exd4 {[%emt 0:00:15]} Ng6 {[%emt 0:01:15]} 13. Nf3 {[%emt 0:00:19]} Nce7 {[%emt 0:00:34]} 14. Ng5 {[%emt 0:00:37]} h6 {[%emt 0:00:28]} 15. Ne4 {[%emt 0:01:13]} Nf5 {[%emt 0:01:07]} 16. Ba3 {[%emt 0:06:23]} Nf4 {[%emt 0:00:25]} 17. Qf3 {[%emt 0:00:00]} Nh4 {[%emt 0:01:08]} 18. Nd6+ {[%emt 0:00:00]} Kf8 {[%emt 0:00:32]} 19. Qg3 {[%emt 0:00:00]} Kg8 {[%emt 0:00:34]} 20. Kd2 {[%emt 0:00:00]} Nxd3 {[%emt 0:00:15]} 21. Qxd3 {[%emt 0:00:00]} Qg5+ {[%emt 0:00:12]} 22. Kc2 {[%emt 0:00:00]} Qg6 {[%emt 0:00:31]} 23. Rbe1 {[%emt 0:00:00]} Nxg2 {[%emt 0:00:21]} 24. Qxg6 {[%emt 0:00:00]} Nxe1+ {[%emt 0:00:03]} 25. Rxe1 {[%emt 0:00:00]} fxg6 {[%emt 0:00:02]} 26. Rg1 {[%emt 0:00:10]} Kh7 {[%emt 0:00:04]} 27. h4 {[%emt 0:00:08]} b6 {[%emt 0:00:37]} 28. Kd2 {[%emt 0:00:06]} Ba6 {[%emt 0:00:08]} 29. b4 {[%emt 0:00:13]} Rab8 {[%emt 0:00:29]} 30. b5 {[%emt 0:00:06]} Bb7 {[%emt 0:00:03]} 31. c4 {[%emt 0:00:05]} a6 {[%emt 0:00:28]} 32. Nf7 {[%emt 0:00:15]} Rhe8 {[%emt 0:00:29]} 33. Ne5 {[%emt 0:00:02]} axb5 {[%emt 0:00:06]} 34. cxb5 {[%emt 0:00:01]} d5 {[%emt 0:00:11]} 35. Nxg6 {[%emt 0:00:06]} Ra8 {[%emt 0:00:08]} 36. Rg3 {[%emt 0:00:17]} Ra5 {[%emt 0:00:07]} 37. Bd6 {[%emt 0:00:06]} Rxb5 {[%emt 0:00:02]} 38. Be5 {[%emt 0:00:05]} Rb2+ {[%emt 0:00:08]} 39. Ke1 {[%emt 0:00:05]} Rxa2 {[%emt 0:00:05]} 40. Nf4 {[%emt 0:00:07]} Rg8 {[%emt 0:00:02]} 41. Nxe6 {[%emt 0:00:01]} Re8 {[%emt 0:00:04]} 42. Rxg7+ {[%emt 0:00:03]} Kh8 {[%emt 0:00:04]} 43. Rxb7+ {[%emt 0:00:02]} Kg8 {[%emt 0:00:03]} 44. Rg7+ {[%emt 0:00:07] Kf8} 1-0

[Event "NSV Open-ch Rapid 2019"]
[Site "Lueneburg"]
[Date "2019.08.03"]
[Round "3.17"]
[White "Rothenberg, Nina"]
[Black "Langer, Michael S."]
[Result "1/2-1/2"]
[ECO "B12"]
[WhiteElo "1768"]
[BlackElo "1911"]
[Annotator "NA RC"]
[PlyCount "70"]
[EventDate "2019.08.03"]
[EventType "swiss"]
[EventCountry "GER"]
[SourceTitle "playchess.com"]
[Source "ChessBase"]
[SourceQuality "1"]
[TimeControl "600+5"]

1. e4 {[%emt 0:00:00]} c6 {[%emt 0:00:00]} 2. d4 {[%emt 0:00:00]} d5 {[%emt 0:00:00]} 3. e5 {[%emt 0:00:00]} c5 {[%emt 0:00:00]} 4. c3 {[%emt 0:00:03]} Nc6 {[%emt 0:00:01]} 5. Nf3 {[%emt 0:00:16]} Bg4 {[%emt 0:00:02]} 6. Be2 {[%emt 0:00:02]} e6 {[%emt 0:00:03]} 7. O-O {[%emt 0:00:05]} cxd4 {[%emt 0:00:04]} 8. cxd4 {[%emt 0:00:05]} Nge7 {[%emt 0:00:03]} 9. Be3 {[%emt 0:00:20]} Nf5 {[%emt 0:00:59]} 10. Nc3 {[%emt 0:00:18]} a6 {[%emt 0:00:10]} 11. h3 {[%emt 0:00:08]} Nxe3 {[%emt 0:00:20]} 12. fxe3 {[%emt 0:00:04]} Bf5 {[%emt 0:00:13]} 13. a3 {[%emt 0:00:31]} Be7 {[%emt 0:00:08]} 14. Bd3 {[%emt 0:00:51]} Bxd3 {[%emt 0:00:32]} 15. Qxd3 {[%emt 0:00:02]} O-O {[%emt 0:00:03]} 16. Rac1 {[%emt 0:01:26]} Rc8 {[%emt 0:00:22]} 17. b4 {[%emt 0:00:16]} Qd7 {[%emt 0:00:21]} 18. Nd2 {[%emt 0:00:23]} f6 {[%emt 0:01:32]} 19. exf6 {[%emt 0:00:22]} Bxf6 {[%emt 0:00:02]} 20. Nb3 {[%emt 0:00:14]} Qe7 {[%emt 0:00:31]} 21. Ne2 {[%emt 0:01:01]} Na7 {[%emt 0:00:41]} 22. Nf4 {[%emt 0:00:27]} Bg5 {[%emt 0:00:48]} 23. Rxc8 {[%emt 0:00:40]} Rxc8 {[%emt 0:00:01]} 24. Nc5 {[%emt 0:00:09]} Bxf4 {[%emt 0:00:14]} 25. Rxf4 {[%emt 0:00:03]} Nb5 {[%emt 0:01:09]} 26. Rf1 {[%emt 0:00:36]} Nd6 {[%emt 0:00:34]} 27. Ra1 {[%emt 0:01:35]} Rf8 {[%emt 0:00:32]} 28. a4 {[%emt 0:00:28]} Qf6 {[%emt 0:02:06]} 29. Rf1 {[%emt 0:00:18]} Qxf1+ {[%emt 0:00:08]} 30. Qxf1 {[%emt 0:00:02]} Rxf1+ {[%emt 0:00:01]} 31. Kxf1 {[%emt 0:00:01]} Kf7 {[%emt 0:00:02]} 32. Ke2 {[%emt 0:00:26]} Ke7 {[%emt 0:00:07]} 33. Kd3 {[%emt 0:00:16]} Kf7 {[%emt 0:00:28]} 34. Ke2 {[%emt 0:00:55]} Ke7 {[%emt 0:00:02]} 35. Kd3 {[%emt 0:00:32]} Ke8 {[%emt 0:00:36]} 1/2-1/2

[Event "NSV Open-ch Rapid 2019"]
[Site "Lueneburg"]
[Date "2019.08.03"]
[Round "3.18"]
[White "Aarav Dengla"]
[Black "Egelriede, Nikolas"]
[Result "1-0"]
[ECO "B01"]
[WhiteElo "2051"]
[BlackElo "1865"]
[Annotator "NA RC"]
[PlyCount "115"]
[EventDate "2019.08.03"]
[EventType "swiss"]
[EventCountry "GER"]
[SourceTitle "playchess.com"]
[Source "ChessBase"]
[SourceQuality "1"]
[TimeControl "600+5"]

1. e4 {[%emt 0:00:00]} d5 {[%emt 0:00:00]} 2. exd5 {[%emt 0:00:00]} Qxd5 {[%emt 0:00:00]} 3. Nc3 {[%emt 0:00:00]} Qd6 {[%emt 0:00:00]} 4. d4 {[%emt 0:00:00]} Nf6 {[%emt 0:00:01]} 5. Nf3 {[%emt 0:00:01]} a6 {[%emt 0:00:01]} 6. Be2 {[%emt 0:00:02]} Nc6 {[%emt 0:00:04]} 7. Be3 {[%emt 0:00:01]} Bf5 {[%emt 0:00:09]} 8. Qd2 {[%emt 0:00:01]} O-O-O {[%emt 0:00:08]} 9. O-O {[%emt 0:01:18]} e5 {[%emt 0:00:38]} 10. dxe5 {[%emt 0:00:13]} Nxe5 {[%emt 0:00:04]} 11. Qxd6 {[%emt 0:00:04]} Bxd6 {[%emt 0:00:03]} 12. Nd4 {[%emt 0:00:23]} Bg6 {[%emt 0:00:14]} 13. f4 {[%emt 0:00:59]} Neg4 {[%emt 0:00:39]} 14. f5 {[%emt 0:01:11]} Nxe3 {[%emt 0:00:17]} 15. fxg6 {[%emt 0:00:02]} Nxf1 {[%emt 0:00:20]} 16. Kxf1 {[%emt 0:00:28]} hxg6 {[%emt 0:00:39]} 17. h3 {[%emt 0:00:14]} Bc5 {[%emt 0:00:20]} 18. Nb3 {[%emt 0:00:12]} Ba7 {[%emt 0:00:07]} 19. Rd1 {[%emt 0:00:22]} Rxd1+ {[%emt 0:00:10]} 20. Bxd1 {[%emt 0:00:01]} Rd8 {[%emt 0:00:11]} 21. Bf3 {[%emt 0:00:14]} Nh5 {[%emt 0:00:21]} 22. Na5 {[%emt 0:01:31]} c6 {[%emt 0:00:11]} 23. Nb3 {[%emt 0:00:14]} Re8 {[%emt 0:00:29]} 24. Ne2 {[%emt 0:00:17]} Nf6 {[%emt 0:00:17]} 25. c3 {[%emt 0:00:19]} Nd7 {[%emt 0:00:45]} 26. Nbd4 {[%emt 0:00:19]} Ne5 {[%emt 0:00:15]} 27. b3 {[%emt 0:00:24]} Nxf3 {[%emt 0:00:13]} 28. Nxf3 {[%emt 0:00:19]} Rd8 {[%emt 0:00:30]} 29. Ke1 {[%emt 0:00:06]} Re8 {[%emt 0:00:21]} 30. Kd2 {[%emt 0:00:12]} Be3+ {[%emt 0:00:39]} 31. Kd3 {[%emt 0:00:04]} Bc5 {[%emt 0:00:17]} 32. b4 {[%emt 0:00:10]} Bf8 {[%emt 0:00:20]} 33. g4 {[%emt 0:00:27]} f5 {[%emt 0:00:19]} 34. Nf4 {[%emt 0:00:11]} fxg4 {[%emt 0:00:26]} 35. hxg4 {[%emt 0:00:03]} Rd8+ {[%emt 0:00:20]} 36. Ke2 {[%emt 0:00:29]} Rd6 {[%emt 0:00:04]} 37. Nd4 {[%emt 0:00:10]} Kd7 {[%emt 0:00:30]} 38. Ke3 {[%emt 0:00:12]} Be7 {[%emt 0:00:09]} 39. Nd3 {[%emt 0:00:22]} Rd5 {[%emt 0:00:27]} 40. Ke4 {[%emt 0:00:36]} Bf6 {[%emt 0:00:19]} 41. Nc5+ {[%emt 0:00:30]} Kc8 {[%emt 0:00:21]} 42. Nce6 {[%emt 0:00:08]} Bxd4 {[%emt 0:01:52]} 43. cxd4 {[%emt 0:00:08]} Kd7 {[%emt 0:00:00]} 44. Nc5+ {[%emt 0:00:04]} Kc7 {[%emt 0:00:00]} 45. a3 {[%emt 0:00:01]} Rd6 {[%emt 0:00:00]} 46. Ke5 {[%emt 0:00:02]} Rf6 {[%emt 0:00:00]} 47. Ne6+ {[%emt 0:00:01]} Rxe6+ {[%emt 0:00:00]} 48. Kxe6 {[%emt 0:00:02]} b6 {[%emt 0:00:00]} 49. Kf7 {[%emt 0:00:03]} Kd6 {[%emt 0:00:00]} 50. Kxg6 {[%emt 0:00:09]} c5 {[%emt 0:00:00]} 51. dxc5+ {[%emt 0:00:03]} bxc5 {[%emt 0:00:00]} 52. bxc5+ {[%emt 0:00:01]} Kxc5 {[%emt 0:00:00]} 53. Kxg7 {[%emt 0:00:03]} Kc4 {[%emt 0:00:00]} 54. Kf6 {[%emt 0:00:02]} Kb3 {[%emt 0:00:00]} 55. g5 {[%emt 0:00:00]} Kxa3 {[%emt 0:00:00]} 56. g6 {[%emt 0:00:01]} Kb3 {[%emt 0:00:00]} 57. g7 {[%emt 0:01:16]} a5 {[%emt 0:01:15]} 58. g8=Q+ {[%emt 0:00:00] a4} 1-0

[Event "NSV Open-ch Rapid 2019"]
[Site "Lueneburg"]
[Date "2019.08.03"]
[Round "3.19"]
[White "Lai Hop, Long"]
[Black "Rempe, Jonas"]
[Result "1-0"]
[ECO "E69"]
[WhiteElo "1817"]
[BlackElo "1839"]
[Annotator "NA RC"]
[PlyCount "119"]
[EventDate "2019.08.03"]
[EventType "swiss"]
[EventCountry "GER"]
[SourceTitle "playchess.com"]
[Source "ChessBase"]
[SourceQuality "1"]
[TimeControl "600+5"]

1. g3 {[%emt 0:00:01]} Nf6 {[%emt 0:00:00]} 2. d4 {[%emt 0:00:01]} g6 {[%emt 0:00:00]} 3. Bg2 {[%emt 0:00:02]} Bg7 {[%emt 0:00:00]} 4. c4 {[%emt 0:00:01]} O-O {[%emt 0:00:00]} 5. Nc3 {[%emt 0:00:01]} d6 {[%emt 0:00:00]} 6. e4 {[%emt 0:00:02]} c6 {[%emt 0:00:01]} 7. Nf3 {[%emt 0:00:11]} Nbd7 {[%emt 0:00:01]} 8. O-O {[%emt 0:00:09]} Qc7 {[%emt 0:00:02]} 9. Re1 {[%emt 0:00:03]} e5 {[%emt 0:00:01]} 10. h3 {[%emt 0:00:05]} h6 {[%emt 0:00:09]} 11. Be3 {[%emt 0:00:04]} Kh7 {[%emt 0:00:08]} 12. Rc1 {[%emt 0:00:09]} Ne8 {[%emt 0:00:03]} 13. g4 {[%emt 0:00:43]} Nb6 {[%emt 0:00:17]} 14. b3 {[%emt 0:00:15]} Bd7 {[%emt 0:01:53]} 15. Qc2 {[%emt 0:00:16]} f5 {[%emt 0:00:02]} 16. c5 {[%emt 0:00:59]} dxc5 {[%emt 0:00:02]} 17. dxc5 {[%emt 0:00:03]} Nc8 {[%emt 0:00:00]} 18. exf5 {[%emt 0:00:45]} gxf5 {[%emt 0:00:04]} 19. gxf5 {[%emt 0:00:08]} Bxf5 {[%emt 0:00:02]} 20. Ne4 {[%emt 0:00:52]} Nf6 {[%emt 0:00:01]} 21. Nfd2 {[%emt 0:00:15]} Nxe4 {[%emt 0:00:15]} 22. Nxe4 {[%emt 0:00:11]} Qd7 {[%emt 0:00:19]} 23. Rcd1 {[%emt 0:00:33]} Qe6 {[%emt 0:00:01]} 24. Rd2 {[%emt 0:00:11]} Kh8 {[%emt 0:00:05]} 25. Kh2 {[%emt 0:00:17]} Ne7 {[%emt 0:00:17]} 26. Qc4 {[%emt 0:00:32]} Nd5 {[%emt 0:00:07]} 27. Red1 {[%emt 0:00:58]} Qg6 {[%emt 0:00:22]} 28. Ng3 {[%emt 0:01:10]} Nxe3 {[%emt 0:01:09]} 29. fxe3 {[%emt 0:00:03]} e4 {[%emt 0:00:09]} 30. Nxf5 {[%emt 0:01:16]} Qxf5 {[%emt 0:01:02]} 31. Qxe4 {[%emt 0:00:20]} Qg5 {[%emt 0:00:26]} 32. Rd7 {[%emt 0:01:02]} Rae8 {[%emt 0:00:25]} 33. Qg4 {[%emt 0:00:13]} Qxg4 {[%emt 0:00:49]} 34. hxg4 {[%emt 0:00:01]} Rxe3 {[%emt 0:00:01]} 35. Rxb7 {[%emt 0:00:25]} Re2 {[%emt 0:00:02]} 36. Kg1 {[%emt 0:00:02]} Rxa2 {[%emt 0:00:27]} 37. Rdd7 {[%emt 0:00:21]} Ra1+ {[%emt 0:01:10]} 38. Kh2 {[%emt 0:00:02]} Be5+ {[%emt 0:00:02]} 39. Kh3 {[%emt 0:00:03]} Ra2 {[%emt 0:00:11]} 40. g5 {[%emt 0:00:13]} hxg5 {[%emt 0:00:27]} 41. Bxc6 {[%emt 0:00:08]} Rh2+ {[%emt 0:00:18]} 42. Kg4 {[%emt 0:00:02]} Rf4+ {[%emt 0:00:02]} 43. Kxg5 {[%emt 0:00:04]} Rf8 {[%emt 0:00:26]} 44. Rf7 {[%emt 0:00:11]} Rg8+ {[%emt 0:00:33]} 45. Kf5 {[%emt 0:00:01]} Rh5+ {[%emt 0:00:01]} 46. Ke4 {[%emt 0:00:02]} Rg4+ {[%emt 0:00:03]} 47. Ke3 {[%emt 0:00:08]} Rh3+ {[%emt 0:00:49]} 48. Bf3 {[%emt 0:00:02]} Kg8 {[%emt 0:00:49]} 49. Ke2 {[%emt 0:00:03]} Rh2+ {[%emt 0:00:05]} 50. Kd3 {[%emt 0:00:02]} Rd4+ {[%emt 0:00:05]} 51. Ke3 {[%emt 0:00:04]} Rhd2 {[%emt 0:00:19]} 52. Be4 {[%emt 0:00:14]} Rd8 {[%emt 0:00:11]} 53. Rfe7 {[%emt 0:00:09]} Bf6 {[%emt 0:00:02]} 54. Bh7+ {[%emt 0:00:06]} Kh8 {[%emt 0:00:04]} 55. Rf7 {[%emt 0:00:06]} Bg5+ {[%emt 0:00:01]} 56. Kf3 {[%emt 0:00:02]} R2d3+ {[%emt 0:00:06]} 57. Bxd3 {[%emt 0:00:02]} Rxd3+ {[%emt 0:00:07]} 58. Ke2 {[%emt 0:00:02]} Rd2+ {[%emt 0:00:06]} 59. Ke1 {[%emt 0:00:03]} Rd8 {[%emt 0:00:16]} 60. Rh7+ {[%emt 0:00:31]} 1-0

[Event "NSV Open-ch Rapid 2019"]
[Site "Lueneburg"]
[Date "2019.08.03"]
[Round "3.21"]
[White "Doederlein, Etienne"]
[Black "Dralle, Hannes"]
[Result "0-1"]
[ECO "A16"]
[WhiteElo "1868"]
[BlackElo "1732"]
[Annotator "NA RC"]
[PlyCount "52"]
[EventDate "2019.08.03"]
[EventType "swiss"]
[EventCountry "GER"]
[SourceTitle "playchess.com"]
[Source "ChessBase"]
[SourceQuality "1"]
[TimeControl "600+5"]

1. c4 {[%emt 0:00:00]} Nf6 {[%emt 0:00:00]} 2. Nc3 {[%emt 0:00:00]} d5 {[%emt 0:00:01]} 3. cxd5 {[%emt 0:00:04]} Nxd5 {[%emt 0:00:01]} 4. Nxd5 {[%emt 0:00:06]} Qxd5 {[%emt 0:00:02]} 5. Nf3 {[%emt 0:00:05]} g6 {[%emt 0:00:07]} 6. g3 {[%emt 0:00:03]} Bg7 {[%emt 0:00:08]} 7. Bg2 {[%emt 0:00:01]} Qa5 {[%emt 0:00:08]} 8. O-O {[%emt 0:00:07]} O-O {[%emt 0:00:02]} 9. d4 {[%emt 0:00:17]} Na6 {[%emt 0:00:36]} 10. Bd2 {[%emt 0:00:33]} Qb6 {[%emt 0:00:09]} 11. Bc3 {[%emt 0:00:11]} c6 {[%emt 0:01:03]} 12. e4 {[%emt 0:00:15]} Nc7 {[%emt 0:00:47]} 13. Qd2 {[%emt 0:00:51]} Ne6 {[%emt 0:01:34]} 14. Rfd1 {[%emt 0:01:24]} Qc7 {[%emt 0:00:17]} 15. Rac1 {[%emt 0:00:11]} b6 {[%emt 0:00:38]} 16. d5 {[%emt 0:02:08]} Nc5 {[%emt 0:00:01]} 17. Nd4 {[%emt 0:00:24]} cxd5 {[%emt 0:00:29]} 18. exd5 {[%emt 0:00:05]} Bb7 {[%emt 0:01:24]} 19. b4 {[%emt 0:01:09]} Na6 {[%emt 0:00:59]} 20. Ba1 {[%emt 0:00:41]} Qd7 {[%emt 0:00:12]} 21. Nb3 {[%emt 0:01:46]} Bxa1 {[%emt 0:00:17]} 22. Rxa1 {[%emt 0:00:10]} Rfd8 {[%emt 0:00:37]} 23. a3 {[%emt 0:00:33]} Nc7 {[%emt 0:00:13]} 24. d6 {[%emt 0:00:15]} Bxg2 {[%emt 0:02:15]} 25. dxc7 {[%emt 0:00:19]} Qxc7 {[%emt 0:00:00]} 26. Qe2 {[%emt 0:00:32]} Qb7 {[%emt 0:00:10]} 0-1

[Event "NSV Open-ch Rapid 2019"]
[Site "Lueneburg"]
[Date "2019.08.03"]
[Round "3.22"]
[White "Rick, Niklas Corvin"]
[Black "Kolhoff, Manfred"]
[Result "1/2-1/2"]
[ECO "D35"]
[WhiteElo "1444"]
[BlackElo "1616"]
[Annotator "NA RC"]
[PlyCount "81"]
[EventDate "2019.08.03"]
[EventType "swiss"]
[EventCountry "GER"]
[SourceTitle "playchess.com"]
[Source "ChessBase"]
[SourceQuality "1"]
[TimeControl "600+5"]

1. d4 {[%emt 0:00:00]} d5 {[%emt 0:00:00]} 2. c4 {[%emt 0:00:00]} e6 {[%emt 0:00:00]} 3. cxd5 {[%emt 0:00:02]} exd5 {[%emt 0:00:00]} 4. Nc3 {[%emt 0:00:10]} Nf6 {[%emt 0:00:00]} 5. Bg5 {[%emt 0:00:08]} Be6 {[%emt 0:00:02]} 6. Qb3 {[%emt 0:00:11]} b6 {[%emt 0:00:20]} 7. Bxf6 {[%emt 0:00:06]} Qxf6 {[%emt 0:00:06]} 8. Nxd5 {[%emt 0:00:06]} Bxd5 {[%emt 0:00:16]} 9. Qxd5 {[%emt 0:00:03]} c6 {[%emt 0:00:04]} 10. Qe4+ {[%emt 0:00:40]} Be7 {[%emt 0:00:43]} 11. e3 {[%emt 0:00:07]} O-O {[%emt 0:00:10]} 12. Bd3 {[%emt 0:00:02]} g6 {[%emt 0:00:02]} 13. Nf3 {[%emt 0:00:08]} Re8 {[%emt 0:00:00]} 14. O-O {[%emt 0:01:15]} Nd7 {[%emt 0:00:18]} 15. Qf4 {[%emt 0:00:48]} Rad8 {[%emt 0:00:16]} 16. Qxf6 {[%emt 0:00:15]} Bxf6 {[%emt 0:00:04]} 17. Rac1 {[%emt 0:00:02]} c5 {[%emt 0:00:10]} 18. Rfe1 {[%emt 0:00:28]} cxd4 {[%emt 0:01:19]} 19. exd4 {[%emt 0:00:06]} Rxe1+ {[%emt 0:00:24]} 20. Rxe1 {[%emt 0:00:03]} Nf8 {[%emt 0:00:10]} 21. h3 {[%emt 0:02:35]} Bxd4 {[%emt 0:00:12]} 22. Nxd4 {[%emt 0:00:01]} Rxd4 {[%emt 0:00:01]} 23. Bb1 {[%emt 0:00:31]} Rd2 {[%emt 0:00:07]} 24. b3 {[%emt 0:00:14]} Ne6 {[%emt 0:00:00]} 25. g3 {[%emt 0:00:22]} Nd4 {[%emt 0:00:12]} 26. Kg2 {[%emt 0:00:03]} Nb5 {[%emt 0:00:23]} 27. Re7 {[%emt 0:00:30]} Nc3 {[%emt 0:00:12]} 28. Be4 {[%emt 0:00:36]} Nxe4 {[%emt 0:00:16]} 29. Rxe4 {[%emt 0:00:01]} Rxa2 {[%emt 0:00:03]} 30. Kf3 {[%emt 0:00:08]} Ra3 {[%emt 0:00:01]} 31. Rb4 {[%emt 0:00:05]} Kg7 {[%emt 0:00:19]} 32. Ke3 {[%emt 0:00:07]} f5 {[%emt 0:00:04]} 33. f4 {[%emt 0:00:01]} Kf6 {[%emt 0:00:12]} 34. g4 {[%emt 0:00:20]} h6 {[%emt 0:00:08]} 35. Kd4 {[%emt 0:00:18]} Ra1 {[%emt 0:00:14]} 36. Rc4 {[%emt 0:00:08]} Ra3 {[%emt 0:00:25]} 37. Rc6+ {[%emt 0:00:05]} Kf7 {[%emt 0:00:02]} 38. Rc7+ {[%emt 0:02:25]} Kf6 {[%emt 0:00:01]} 39. Rc6+ {[%emt 0:00:01]} Kf7 {[%emt 0:00:49]} 40. Rc7+ {[%emt 0:00:02]} Kg8 {[%emt 0:00:12]} 41. Rc8+ {[%emt 0:00:05]} 1/2-1/2

[Event "NSV Open-ch Rapid 2019"]
[Site "Lueneburg"]
[Date "2019.08.03"]
[Round "3.23"]
[White "Mundt, Alexandra"]
[Black "Kueck, Alexander"]
[Result "1-0"]
[ECO "C42"]
[WhiteElo "1756"]
[BlackElo "1374"]
[Annotator "NA RC"]
[PlyCount "23"]
[EventDate "2019.08.03"]
[EventType "swiss"]
[EventCountry "GER"]
[SourceTitle "playchess.com"]
[Source "ChessBase"]
[SourceQuality "1"]
[TimeControl "600+5"]

1. e4 {[%emt 0:00:00]} e5 {[%emt 0:00:00]} 2. Nf3 {[%emt 0:00:00]} Nf6 {[%emt 0:00:04]} 3. Nxe5 {[%emt 0:00:00]} Nxe4 {[%emt 0:00:15]} 4. Qe2 {[%emt 0:01:11]} d6 {[%emt 0:01:04]} 5. Nxf7 {[%emt 0:01:01]} Kxf7 {[%emt 0:00:41]} 6. Qxe4 {[%emt 0:00:07]} Nc6 {[%emt 0:00:16]} 7. Bc4+ {[%emt 0:00:05]} Kf6 {[%emt 0:00:28]} 8. Qh4+ {[%emt 0:01:43]} Ke5 {[%emt 0:00:45]} 9. d4+ {[%emt 0:01:18]} Kf5 {[%emt 0:00:09]} 10. g4+ {[%emt 0:00:36]} Kg6 {[%emt 0:00:18]} 11. Qh5+ {[%emt 0:00:16]} Kf6 {[%emt 0:00:05]} 12. Bg5# {[%emt 0:00:01]} 1-0

[Event "NSV Open-ch Rapid 2019"]
[Site "Lueneburg"]
[Date "2019.08.03"]
[Round "3.26"]
[White "Krueger, Dietrich"]
[Black "Serrer, David"]
[Result "0-1"]
[ECO "B07"]
[WhiteElo "1243"]
[BlackElo "1516"]
[Annotator "NA RC"]
[PlyCount "128"]
[EventDate "2019.08.03"]
[EventType "swiss"]
[EventCountry "GER"]
[SourceTitle "playchess.com"]
[Source "ChessBase"]
[SourceQuality "1"]
[TimeControl "600+5"]

1. Nc3 {[%emt 0:00:00]} Nf6 {[%emt 0:00:00]} 2. d4 {[%emt 0:00:01]} g6 {[%emt 0:00:02]} 3. e4 {[%emt 0:00:07]} d6 {[%emt 0:00:11]} 4. Bg5 {[%emt 0:00:06]} Bg7 {[%emt 0:00:03]} 5. Bc4 {[%emt 0:00:14]} O-O {[%emt 0:00:05]} 6. h4 {[%emt 0:00:10]} c5 {[%emt 0:00:12]} 7. d5 {[%emt 0:00:10]} a6 {[%emt 0:00:13]} 8. h5 {[%emt 0:00:13]} Nxh5 {[%emt 0:00:15]} 9. f4 {[%emt 0:00:23]} b5 {[%emt 0:00:13]} 10. Be2 {[%emt 0:00:04]} h6 {[%emt 0:00:34]} 11. Bxh5 {[%emt 0:00:21]} hxg5 {[%emt 0:00:27]} 12. Bf3 {[%emt 0:00:12]} gxf4 {[%emt 0:00:33]} 13. Qd2 {[%emt 0:00:18]} Be5 {[%emt 0:00:38]} 14. Nge2 {[%emt 0:00:11]} b4 {[%emt 0:00:38]} 15. Nb1 {[%emt 0:00:23]} Bxb2 {[%emt 0:00:26]} 16. Nxf4 {[%emt 0:00:07]} Bg7 {[%emt 0:00:41]} 17. c3 {[%emt 0:00:11]} bxc3 {[%emt 0:00:12]} 18. Nxc3 {[%emt 0:00:05]} Qa5 {[%emt 0:00:30]} 19. Rc1 {[%emt 0:00:19]} Nd7 {[%emt 0:00:14]} 20. Ke2 {[%emt 0:00:23]} Ne5 {[%emt 0:00:23]} 21. a4 {[%emt 0:00:42]} Bg4 {[%emt 0:00:26]} 22. Bxg4 {[%emt 0:00:22]} Nxg4 {[%emt 0:00:03]} 23. Rh4 {[%emt 0:00:23]} Nf6 {[%emt 0:00:33]} 24. Rch1 {[%emt 0:00:15]} Nh5 {[%emt 0:01:19]} 25. Nxh5 {[%emt 0:00:19]} Qxc3 {[%emt 0:01:33]} 26. Nxg7 {[%emt 0:00:11]} Qxd2+ {[%emt 0:00:03]} 27. Kxd2 {[%emt 0:00:06]} Kxg7 {[%emt 0:00:03]} 28. Rh7+ {[%emt 0:00:10]} Kf6 {[%emt 0:00:03]} 29. Ke3 {[%emt 0:00:15]} e6 {[%emt 0:00:13]} 30. Rf1+ {[%emt 0:00:14]} Ke7 {[%emt 0:00:14]} 31. dxe6 {[%emt 0:00:10]} Kxe6 {[%emt 0:00:02]} 32. Rh6 {[%emt 0:00:20]} Rh8 {[%emt 0:00:05]} 33. Rxh8 Rxh8 34. Kf4 {[%emt 0:00:29]} Rh4+ {[%emt 0:00:15]} 35. g4 {[%emt 0:00:14]} Rh2 {[%emt 0:00:12]} 36. Kg3 {[%emt 0:00:15]} Ra2 {[%emt 0:00:03]} 37. g5 {[%emt 0:00:15]} Rxa4 {[%emt 0:00:04]} 38. Rf6+ {[%emt 0:00:04]} Ke7 {[%emt 0:00:01]} 39. Kf4 {[%emt 0:00:12]} c4 {[%emt 0:00:00]} 40. e5 {[%emt 0:00:16]} c3+ {[%emt 0:00:10]} 41. Ke3 {[%emt 0:00:19]} dxe5 {[%emt 0:00:03]} 42. Kd3 {[%emt 0:00:06]} Rg4 {[%emt 0:00:36]} 43. Kxc3 {[%emt 0:00:14]} Rxg5 {[%emt 0:00:01]} 44. Rxa6 {[%emt 0:00:05]} Rg3+ {[%emt 0:00:09]} 45. Kc4 {[%emt 0:00:08]} f5 {[%emt 0:00:03]} 46. Ra7+ {[%emt 0:00:07]} Kd6 {[%emt 0:00:05]} 47. Ra6+ {[%emt 0:00:10]} Kc7 {[%emt 0:01:06]} 48. Ra7+ {[%emt 0:00:22]} Kb6 {[%emt 0:00:00]} 49. Re7 {[%emt 0:00:12]} Rg4+ {[%emt 0:00:00]} 50. Kd5 {[%emt 0:00:11]} e4 {[%emt 0:00:00]} 51. Kd4 {[%emt 0:00:20]} Rg1 {[%emt 0:00:00]} 52. Kd5 {[%emt 0:00:16]} Rd1+ {[%emt 0:00:00]} 53. Ke6 {[%emt 0:00:24]} e3 {[%emt 0:00:00]} 54. Kf7 {[%emt 0:00:05]} f4 {[%emt 0:00:00]} 55. Kxg6 {[%emt 0:00:16]} Rd2 {[%emt 0:00:00]} 56. Kg5 {[%emt 0:00:06]} f3 {[%emt 0:00:00]} 57. Re6+ {[%emt 0:00:16]} Kc5 {[%emt 0:00:00]} 58. Kf4 {[%emt 0:00:06]} f2 {[%emt 0:00:00]} 59. Kxe3 {[%emt 0:00:31]} f1=Q {[%emt 0:00:00]} 60. Re5+ {[%emt 0:00:09]} Kd6 {[%emt 0:00:01]} 61. Re4 {[%emt 0:00:44]} Re2+ {[%emt 0:00:02]} 62. Kd4 {[%emt 0:00:17]} Qd1+ {[%emt 0:00:02]} 63. Kc3 {[%emt 0:00:26]} Qd2+ {[%emt 0:00:02]} 64. Kc4 {[%emt 0:00:20]} Rxe4+ {[%emt 0:01:18]} 0-1